[Event "NOR-chT Eliteserien 2018-19"]
[Site "Norway"]
[Date "2019.03.09"]
[Round "8.24"]
[White "Oye-Stromberg, Alexander"]
[Black "Christenson, Flemming"]
[Result "1/2-1/2"]
[ECO "A85"]
[WhiteElo "1873"]
[BlackElo "2204"]
[Annotator "NA"]
[PlyCount "79"]
[EventDate "2018.11.02"]
[EventType "team-tourn"]
[EventCountry "NOR"]
[SourceTitle "playchess.com"]
[Source "ChessBase"]
[SourceQuality "1"]
[TimeControl "40/5400+30:1800+30"]

1. d4 {[%emt 0:00:00]} e6 {[%emt 0:00:00]} 2. c4 {[%emt 0:00:00]} f5 {[%emt 0:00:15]} 3. Nc3 {[%emt 0:00:07]} Nf6 {[%emt 0:00:04]} 4. Bf4 {[%emt 0:02:33]} Bb4 {[%emt 0:02:00]} 5. e3 {[%emt 0:09:24]} b6 {[%emt 0:02:41]} 6. Nge2 {[%emt 0:00:07]} Bb7 {[%emt 0:00:25]} 7. a3 {[%emt 0:00:05]} Be7 {[%emt 0:02:49]} 8. d5 {[%emt 0:07:42]} Qc8 {[%emt 0:10:23]} 9. Nb5 {[%emt 0:16:40]} d6 {[%emt 0:06:12]} 10. dxe6 {[%emt 0:01:54]} a6 {[%emt 0:03:31]} 11. Nbd4 {[%emt 0:00:32]} g6 {[%emt 0:00:32]} 12. Nc3 {[%emt 0:03:17]} O-O {[%emt 0:10:06]} 13. h4 {[%emt 0:11:05]} c5 {[%emt 0:06:29]} 14. Nf3 {[%emt 0:02:08]} Qxe6 {[%emt 0:01:01]} 15. Be2 {[%emt 0:00:15]} Ne4 {[%emt 0:05:55]} 16. Nd5 {[%emt 0:08:50]} Bxd5 {[%emt 0:00:53]} 17. cxd5 {[%emt 0:00:21]} Qf7 {[%emt 0:04:18]} 18. Nd2 {[%emt 0:02:46]} Nxd2 {[%emt 0:01:05]} 19. Qxd2 {[%emt 0:00:37]} Nd7 {[%emt 0:00:29]} 20. Bg3 {[%emt 0:01:23]} b5 {[%emt 0:04:39]} 21. O-O {[%emt 0:01:36]} c4 {[%emt 0:06:53]} 22. a4 {[%emt 0:05:02]} Nc5 {[%emt 0:00:28]} 23. Qb4 {[%emt 0:00:19]} bxa4 {[%emt 0:04:03]} 24. Qxc4 {[%emt 0:01:31]} Rab8 {[%emt 0:00:24]} 25. Bd1 {[%emt 0:01:26]} Rfc8 {[%emt 0:01:38]} 26. Bxa4 {[%emt 0:01:11]} Nb3 {[%emt 0:05:41]} 27. Qd3 {[%emt 0:04:12]} Nxa1 {[%emt 0:00:19]} 28. Bd7 {[%emt 0:00:25]} Qf6 {[%emt 0:07:46]} 29. Bxc8 {[%emt 0:01:12]} Nb3 {[%emt 0:02:19]} 30. Be6+ {[%emt 0:00:15]} Kg7 {[%emt 0:00:51]} 31. Qxa6 {[%emt 0:00:49]} Nc5 {[%emt 0:00:54]} 32. Qa7 {[%emt 0:06:43]} Rb7 {[%emt 0:00:03]} 33. Qa8 {[%emt 0:00:07]} Qf8 {[%emt 0:04:32]} 34. Qxf8+ {[%emt 0:06:38]} Bxf8 {[%emt 0:00:02]} 35. Rb1 {[%emt 0:00:27]} Rb3 {[%emt 0:02:10]} 36. Kf1 {[%emt 0:01:17]} Ne4 {[%emt 0:00:36]} 37. Ke1 {[%emt 0:04:11]} Nxg3 {[%emt 0:01:06]} 38. fxg3 {[%emt 0:00:04]} Rxe3+ {[%emt 0:00:37]} 39. Kf2 {[%emt 0:00:31]} Rb3 {[%emt 0:00:16]} 40. h5 {[%emt 0:01:19]} 1/2-1/2

[Event "NOR-chT Eliteserien 2018-19"]
[Site "Norway"]
[Date "2019.03.09"]
[Round "8.25"]
[White "Notkevich, Benjamin Arvola"]
[Black "Ostenstad, Berge"]
[Result "0-1"]
[ECO "E11"]
[WhiteElo "2495"]
[BlackElo "2440"]
[Annotator "ChessBase"]
[PlyCount "100"]
[EventDate "2018.11.02"]
[EventType "team-tourn"]
[EventCountry "NOR"]
[SourceTitle "playchess.com"]
[Source "ChessBase"]
[SourceQuality "1"]
[TimeControl "40/5400+30:1800+30"]

1. d4 {[%emt 0:00:10]} Nf6 {[%emt 0:00:00]} 2. c4 {[%emt 0:00:04]} e6 {[%emt 0:00:00]} 3. g3 {[%emt 0:00:04]} d5 {[%emt 0:00:43]} 4. Nf3 {[%emt 0:00:07]} Bb4+ {[%emt 0:01:07]} 5. Bd2 {[%emt 0:00:35]} Be7 {[%emt 0:00:09]} 6. Bg2 {[%emt 0:00:15]} O-O {[%emt 0:00:15]} 7. O-O {[%emt 0:00:18]} Nbd7 {[%emt 0:02:27]} 8. Qc2 {[%emt 0:00:12]} c6 {[%emt 0:00:16]} 9. Rd1 {[%emt 0:00:13]} b6 {[%emt 0:02:11]} 10. Bg5 {[%emt 0:00:19]} Bb7 {[%emt 0:06:35]} 11. Nbd2 {[%emt 0:01:17]} h6 {[%emt 0:05:06]} 12. Bxf6 {[%emt 0:00:09]} Nxf6 {[%emt 0:00:25]} 13. e4 {[%emt 0:05:20]} Rc8 {[%emt 0:02:32]} 14. Rac1 {[%emt 0:21:53]} dxc4 {[%emt 0:13:29]} 15. Nxc4 {[%emt 0:01:50]} Qc7 {[%emt 0:00:26]} 16. Nfe5 {[%emt 0:12:59]} Nd7 {[%emt 0:23:46]} 17. Nxd7 {[%emt 0:19:37]} Qxd7 {[%emt 0:00:31]} 18. Qa4 {[%emt 0:01:45]} Ba8 {[%emt 0:06:58]} 19. Ne5 {[%emt 0:00:13]} Qc7 {[%emt 0:01:20]} 20. b4 {[%emt 0:20:17]} Rfd8 {[%emt 0:05:32]} 21. f4 {[%emt 0:07:07]} Bf6 {[%emt 0:03:44]} 22. Qb3 {[%emt 0:01:37]} Bxe5 {[%emt 0:06:02]} 23. fxe5 {[%emt 0:00:02]} Qe7 {[%emt 0:01:11]} 24. Qc3 {[%emt 0:00:04]} Bb7 {[%emt 0:00:55]} 25. a3 {[%emt 0:02:15]} Rd7 {[%emt 0:01:11]} 26. Qe3 {[%emt 0:00:27]} Rcd8 {[%emt 0:01:15]} 27. Bf3 {[%emt 0:00:06]} Qg5 {[%emt 0:01:05]} 28. Kf2 {[%emt 0:00:05]} Rxd4 {[%emt 0:01:36]} 29. Rxd4 {[%emt 0:03:57]} Rxd4 {[%emt 0:00:10]} 30. Qxd4 {[%emt 0:01:06]} Qxc1 {[%emt 0:00:06]} 31. Qd8+ {[%emt 0:00:34]} Kh7 {[%emt 0:00:09]} 32. Be2 {[%emt 0:00:31]} Qb2 {[%emt 0:04:32]} 33. Kf1 {[%emt 0:00:27]} Qxa3 {[%emt 0:03:41]} 34. Qc7 {[%emt 0:00:04]} Ba6 {[%emt 0:00:17]} 35. Bxa6 {[%emt 0:00:04]} Qxa6+ {[%emt 0:00:05]} 36. Kg1 {[%emt 0:00:22]} Qe2 {[%emt 0:01:56]} 37. Qxc6 {[%emt 0:00:08]} Qe1+ {[%emt 0:00:11]} 38. Kg2 {[%emt 0:00:02]} Qxb4 {[%emt 0:00:07]} 39. Qb7 {[%emt 0:00:20]} Kg6 {[%emt 0:00:25]} 40. h4 {[%emt 0:00:45]} h5 {[%emt 0:01:03]} 41. Qxa7 {[%emt 0:03:34]} Qxe4+ {[%emt 0:00:31]} 42. Kh2 {[%emt 0:00:05]} Qe2+ {[%emt 0:00:51]} 43. Kh3 {[%emt 0:00:10]} Qf1+ {[%emt 0:00:20]} 44. Kh2 {[%emt 0:00:04]} Qf2+ {[%emt 0:00:24]} 45. Kh3 {[%emt 0:00:05]} Qf1+ {[%emt 0:04:35]} 46. Kh2 {[%emt 0:00:16]} Qe2+ {[%emt 0:00:26]} 47. Kh3 {[%emt 0:00:14]} Qe4 {[%emt 0:00:29]} 48. Kh2 {[%emt 0:00:59]} b5 {[%emt 0:00:43]} 49. Qa1 {[%emt 0:12:12]} Qc2+ {[%emt 0:00:49]} 50. Kh3 {[%emt 0:00:18]} b4 {[%emt 0:00:29]} 0-1

[Event "NOR-chT Eliteserien 2018-19"]
[Site "Norway"]
[Date "2019.03.09"]
[Round "8.26"]
[White "Tisdall, Jonathan D"]
[Black "Vestby-Ellingsen, Mads"]
[Result "1-0"]
[ECO "A35"]
[WhiteElo "2399"]
[BlackElo "2358"]
[Annotator "NA"]
[PlyCount "91"]
[EventDate "2018.11.02"]
[EventType "team-tourn"]
[EventCountry "NOR"]
[SourceTitle "playchess.com"]
[Source "ChessBase"]
[SourceQuality "1"]
[TimeControl "40/5400+30:1800+30"]

1. c4 {[%emt 0:01:02]} c5 {[%emt 0:01:05]} 2. Nf3 {[%emt 0:02:36]} Nc6 {[%emt 0:00:23]} 3. Nc3 {[%emt 0:01:14]} g6 {[%emt 0:02:32]} 4. e3 {[%emt 0:01:34]} Nf6 {[%emt 0:00:20]} 5. d4 {[%emt 0:00:13]} cxd4 {[%emt 0:00:09]} 6. exd4 {[%emt 0:00:03]} d5 {[%emt 0:00:19]} 7. cxd5 {[%emt 0:03:19]} Nxd5 {[%emt 0:00:12]} 8. Qb3 {[%emt 0:02:22]} e6 {[%emt 0:00:17]} 9. Bb5 {[%emt 0:12:23]} Bg7 {[%emt 0:00:54]} 10. O-O {[%emt 0:04:33]} O-O {[%emt 0:00:49]} 11. Bxc6 {[%emt 0:02:19]} bxc6 {[%emt 0:00:10]} 12. Ne4 {[%emt 0:00:14]} Qc7 {[%emt 0:04:04]} 13. Bd2 {[%emt 0:01:31]} e5 {[%emt 0:22:26]} 14. Nxe5 {[%emt 0:07:44]} Bxe5 {[%emt 0:01:17]} 15. dxe5 {[%emt 0:00:06]} Qxe5 {[%emt 0:00:19]} 16. Rfe1 {[%emt 0:00:11]} Bf5 {[%emt 0:19:56]} 17. Ng3 {[%emt 0:03:32]} Qf6 {[%emt 0:00:14]} 18. Nxf5 {[%emt 0:06:07]} Qxf5 {[%emt 0:00:12]} 19. Qc4 {[%emt 0:00:06]} Qf6 {[%emt 0:04:07]} 20. b3 {[%emt 0:00:32]} Rfd8 {[%emt 0:03:35]} 21. Rac1 {[%emt 0:01:55]} Rac8 {[%emt 0:07:31]} 22. h4 {[%emt 0:04:39]} Qd6 {[%emt 0:09:14]} 23. Bh6 {[%emt 0:06:31]} Qb4 {[%emt 0:05:52]} 24. Qxb4 {[%emt 0:11:00]} Nxb4 {[%emt 0:00:08]} 25. Re7 {[%emt 0:00:06]} Ra8 {[%emt 0:07:17]} 26. Rb7 {[%emt 0:03:19]} Nxa2 {[%emt 0:06:14]} 27. Rc2 {[%emt 0:00:27]} Rd1+ {[%emt 0:00:12]} 28. Kh2 {[%emt 0:00:02]} Rd4 {[%emt 0:00:13]} 29. Bd2 {[%emt 0:04:25]} Rxh4+ {[%emt 0:03:52]} 30. Kg3 {[%emt 0:00:10]} Rh5 {[%emt 0:00:21]} 31. Rxa2 {[%emt 0:00:24]} Rb5 {[%emt 0:00:33]} 32. Rxb5 {[%emt 0:01:57]} cxb5 {[%emt 0:00:02]} 33. Ra6 {[%emt 0:00:57]} Rd8 {[%emt 0:00:45]} 34. Bh6 {[%emt 0:02:02]} Rd7 {[%emt 0:00:53]} 35. b4 {[%emt 0:03:45]} Rc7 {[%emt 0:00:31]} 36. Be3 {[%emt 0:02:05]} Rc4 {[%emt 0:00:22]} 37. Bc5 {[%emt 0:00:35]} g5 {[%emt 0:00:19]} 38. Rxa7 {[%emt 0:00:16]} h5 {[%emt 0:00:34]} 39. Rb7 {[%emt 0:02:02]} f5 {[%emt 0:00:44]} 40. Rxb5 {[%emt 0:01:11]} Kf7 {[%emt 0:00:19]} 41. Rb6 {[%emt 0:31:00]} f4+ {[%emt 0:04:03]} 42. Kh2 {[%emt 0:00:00]} Kg7 {[%emt 0:00:36]} 43. Rd6 {[%emt 0:00:00]} Rc2 {[%emt 0:01:16]} 44. Bd4+ {[%emt 0:00:00]} Kh7 {[%emt 0:00:13]} 45. b5 {[%emt 0:00:00]} h4 {[%emt 0:00:29]} 46. b6 {[%emt 0:00:00]} 1-0

[Event "NOR-chT Eliteserien 2018-19"]
[Site "Norway"]
[Date "2019.03.09"]
[Round "8.27"]
[White "Lund, Gunnar"]
[Black "Aulin-Jansson, Joran"]
[Result "1-0"]
[ECO "D02"]
[WhiteElo "2228"]
[BlackElo "2258"]
[Annotator "NA"]
[PlyCount "87"]
[EventDate "2018.11.02"]
[EventType "team-tourn"]
[EventCountry "NOR"]
[SourceTitle "playchess.com"]
[Source "ChessBase"]
[SourceQuality "1"]
[TimeControl "40/5400+30:1800+30"]

1. d4 {[%emt 0:00:00]} d5 {[%emt 0:00:00]} 2. Bf4 {[%emt 0:00:00]} c6 {[%emt 0:01:12]} 3. e3 {[%emt 0:00:54]} Bf5 {[%emt 0:00:41]} 4. Nf3 {[%emt 0:04:13]} e6 {[%emt 0:00:15]} 5. c4 {[%emt 0:01:37]} Nf6 {[%emt 0:07:31]} 6. Nc3 {[%emt 0:08:14]} Be7 {[%emt 0:02:04]} 7. Qb3 {[%emt 0:01:24]} b6 {[%emt 0:08:31]} 8. Be2 {[%emt 0:04:20]} O-O {[%emt 0:00:09]} 9. O-O {[%emt 0:00:42]} dxc4 {[%emt 0:07:04]} 10. Qxc4 {[%emt 0:03:46]} Nd5 {[%emt 0:12:18]} 11. Bg3 {[%emt 0:02:17]} Nxc3 {[%emt 0:00:38]} 12. Qxc3 {[%emt 0:01:08]} c5 {[%emt 0:10:12]} 13. Rfd1 {[%emt 0:07:30]} Qc8 {[%emt 0:00:52]} 14. Ne5 {[%emt 0:08:51]} Be4 {[%emt 0:02:03]} 15. Rac1 {[%emt 0:01:18]} Nc6 {[%emt 0:06:43]} 16. dxc5 {[%emt 0:03:08]} bxc5 {[%emt 0:01:06]} 17. Nd7 {[%emt 0:12:52]} Nb4 {[%emt 0:04:11]} 18. Nxf8 {[%emt 0:01:49]} Nxa2 {[%emt 0:00:13]} 19. Qe5 {[%emt 0:00:20]} Nxc1 {[%emt 0:00:20]} 20. Rxc1 {[%emt 0:00:24]} Bb7 {[%emt 0:03:47]} 21. Nxh7 {[%emt 0:04:11]} Kxh7 {[%emt 0:01:51]} 22. Qh5+ {[%emt 0:01:09]} Kg8 {[%emt 0:00:02]} 23. Bd3 {[%emt 0:02:56]} f5 {[%emt 0:00:44]} 24. Bc4 {[%emt 0:02:17]} Bd5 {[%emt 0:00:39]} 25. e4 {[%emt 0:15:00]} Bxc4 {[%emt 0:01:35]} 26. Rxc4 {[%emt 0:00:13]} Qa6 {[%emt 0:00:21]} 27. Rc1 {[%emt 0:00:57]} fxe4 {[%emt 0:00:25]} 28. Be5 {[%emt 0:01:12]} Bf8 {[%emt 0:03:37]} 29. Qg6 {[%emt 0:02:31]} Qc6 {[%emt 0:00:37]} 30. Rd1 {[%emt 0:00:14]} Re8 {[%emt 0:07:30]} 31. h4 {[%emt 0:01:21]} e3 {[%emt 0:01:40]} 32. fxe3 {[%emt 0:00:30]} Re7 {[%emt 0:00:39]} 33. h5 {[%emt 0:02:21]} Qe8 {[%emt 0:03:40]} 34. Qg5 {[%emt 0:00:01]} Rd7 {[%emt 0:00:11]} 35. Ra1 {[%emt 0:01:43]} Qf7 {[%emt 0:02:50]} 36. Rf1 {[%emt 0:00:49]} Qe7 {[%emt 0:03:03]} 37. Qg4 {[%emt 0:02:17]} Rd5 {[%emt 0:02:09]} 38. Qg3 {[%emt 0:00:01]} Qe8 {[%emt 0:01:15]} 39. h6 {[%emt 0:01:38]} g6 {[%emt 0:01:04]} 40. h7+ {[%emt 0:03:15]} Kxh7 {[%emt 0:00:09]} 41. Rxf8 {[%emt 0:02:10]} Qxf8 {[%emt 0:00:13]} 42. Qh4+ {[%emt 0:00:20]} Kg8 {[%emt 0:00:27]} 43. Qh8+ {[%emt 0:00:11]} Kf7 {[%emt 0:00:05]} 44. Qf6+ {[%emt 0:00:05]} 1-0

[Event "NOR-chT Eliteserien 2018-19"]
[Site "Norway"]
[Date "2019.03.09"]
[Round "8.28"]
[White "Hammerstad, Asmund"]
[Black "Machlik, Edit"]
[Result "1/2-1/2"]
[ECO "E39"]
[WhiteElo "2205"]
[BlackElo "2112"]
[Annotator "NA"]
[PlyCount "38"]
[EventDate "2018.11.02"]
[EventType "team-tourn"]
[EventCountry "NOR"]
[SourceTitle "playchess.com"]
[Source "ChessBase"]
[SourceQuality "1"]
[TimeControl "40/5400+30:1800+30"]

1. d4 {[%emt 0:00:00]} Nf6 {[%emt 0:00:00]} 2. c4 {[%emt 0:00:00]} e6 {[%emt 0:00:00]} 3. Nc3 {[%emt 0:00:06]} Bb4 {[%emt 0:00:00]} 4. Qc2 {[%emt 0:00:24]} O-O {[%emt 0:00:00]} 5. Nf3 {[%emt 0:00:23]} c5 {[%emt 0:00:15]} 6. dxc5 {[%emt 0:00:18]} Na6 {[%emt 0:00:06]} 7. g3 {[%emt 0:00:16]} Nxc5 {[%emt 0:00:07]} 8. Bg2 {[%emt 0:00:08]} b6 {[%emt 0:00:41]} 9. O-O {[%emt 0:00:24]} Bb7 {[%emt 0:00:17]} 10. Nb5 {[%emt 0:00:52]} Be4 {[%emt 0:01:17]} 11. Qd1 {[%emt 0:00:20]} Nb7 {[%emt 0:00:15]} 12. Bf4 {[%emt 0:00:22]} Rc8 {[%emt 0:24:43]} 13. a3 {[%emt 0:24:02]} Be7 {[%emt 0:05:44]} 14. Rc1 {[%emt 0:07:00]} a6 {[%emt 0:02:04]} 15. Nd6 {[%emt 0:01:15]} Nxd6 {[%emt 0:01:23]} 16. Bxd6 {[%emt 0:01:51]} Bxd6 {[%emt 0:07:24]} 17. Qxd6 {[%emt 0:00:13]} Rc6 {[%emt 0:07:25]} 18. Qd4 {[%emt 0:07:04]} d6 {[%emt 0:10:44]} 19. Rc3 {[%emt 0:01:54]} Qc7 {[%emt 0:03:31]} 1/2-1/2

[Event "NOR-chT Eliteserien 2018-19"]
[Site "Norway"]
[Date "2019.03.09"]
[Round "8.29"]
[White "Royset, Jon Kr."]
[Black "Diesen, Bruce"]
[Result "0-1"]
[ECO "D55"]
[WhiteElo "2190"]
[BlackElo "2144"]
[Annotator "NA"]
[PlyCount "128"]
[EventDate "2018.11.02"]
[EventType "team-tourn"]
[EventCountry "NOR"]
[SourceTitle "playchess.com"]
[Source "ChessBase"]
[SourceQuality "1"]
[TimeControl "40/5400+30:1800+30"]

1. d4 {[%emt 0:00:00]} Nf6 {[%emt 0:00:00]} 2. c4 {[%emt 0:00:05]} e6 {[%emt 0:00:00]} 3. Nf3 {[%emt 0:01:20]} d5 {[%emt 0:00:01]} 4. Nc3 {[%emt 0:00:30]} Be7 {[%emt 0:00:09]} 5. Bg5 {[%emt 0:01:56]} O-O {[%emt 0:00:06]} 6. e3 {[%emt 0:00:06]} b6 {[%emt 0:00:31]} 7. cxd5 {[%emt 0:11:47]} Nxd5 {[%emt 0:01:18]} 8. Bxe7 {[%emt 0:02:45]} Qxe7 {[%emt 0:00:11]} 9. Nxd5 {[%emt 0:00:08]} exd5 {[%emt 0:00:04]} 10. Qa4 {[%emt 0:01:15]} Bf5 {[%emt 0:08:27]} 11. Rc1 {[%emt 0:03:35]} Rc8 {[%emt 0:06:37]} 12. Be2 {[%emt 0:14:31]} c5 {[%emt 0:01:15]} 13. Qa3 {[%emt 0:03:37]} Nd7 {[%emt 0:03:30]} 14. O-O {[%emt 0:05:58]} Qf6 {[%emt 0:17:38]} 15. dxc5 {[%emt 0:08:54]} Nxc5 {[%emt 0:04:13]} 16. Nd4 {[%emt 0:09:32]} a5 {[%emt 0:06:05]} 17. Nxf5 {[%emt 0:04:14]} Qxf5 {[%emt 0:00:22]} 18. Qc3 {[%emt 0:03:03]} Ne4 {[%emt 0:04:25]} 19. Qe1 {[%emt 0:01:53]} Qe5 {[%emt 0:00:51]} 20. Ba6 {[%emt 0:04:28]} Rd8 {[%emt 0:07:33]} 21. Qe2 {[%emt 0:00:10]} Nc5 {[%emt 0:00:22]} 22. Bb5 {[%emt 0:02:02]} Rd6 {[%emt 0:01:52]} 23. Rfd1 {[%emt 0:02:01]} Rad8 {[%emt 0:01:58]} 24. g3 {[%emt 0:01:07]} Rf6 {[%emt 0:02:48]} 25. Rc2 {[%emt 0:02:23]} h5 {[%emt 0:01:10]} 26. Rd4 {[%emt 0:04:04]} g6 {[%emt 0:01:19]} 27. Bd3 {[%emt 0:06:26]} Ne6 {[%emt 0:03:30]} 28. Rh4 {[%emt 0:00:34]} Qd6 {[%emt 0:01:08]} 29. Qd1 {[%emt 0:02:35]} Qe7 {[%emt 0:04:59]} 30. Bf1 {[%emt 0:01:13]} Ng5 {[%emt 0:03:04]} 31. Bg2 {[%emt 0:00:19]} Ne4 {[%emt 0:00:42]} 32. Qd4 {[%emt 0:00:36]} Re6 {[%emt 0:01:00]} 33. a3 {[%emt 0:00:32]} f5 {[%emt 0:00:36]} 34. b4 {[%emt 0:01:11]} axb4 {[%emt 0:05:11]} 35. axb4 {[%emt 0:00:04]} Red6 {[%emt 0:02:47]} 36. h3 {[%emt 0:00:49]} Re8 {[%emt 0:03:13]} 37. Rf4 {[%emt 0:00:23]} Nf6 {[%emt 0:02:19]} 38. Qc3 {[%emt 0:00:37]} Qe6 {[%emt 0:01:30]} 39. Rd4 {[%emt 0:00:28]} Ne4 {[%emt 0:00:43]} 40. Qd3 {[%emt 0:01:10]} Ra8 {[%emt 0:01:06]} 41. Qd1 {[%emt 0:31:20]} Rad8 {[%emt 0:33:45]} 42. Qa1 {[%emt 0:00:00]} Rc6 {[%emt 0:00:00]} 43. Rxc6 {[%emt 0:00:00]} Qxc6 {[%emt 0:00:00]} 44. Qd1 {[%emt 0:00:00]} Qe6 {[%emt 0:00:00]} 45. g4 {[%emt 0:00:00]} hxg4 {[%emt 0:00:00]} 46. hxg4 {[%emt 0:00:00]} Rd7 {[%emt 0:00:00]} 47. b5 {[%emt 0:00:00]} Qe5 {[%emt 0:00:00]} 48. f4 {[%emt 0:00:00]} Qe6 {[%emt 0:00:00]} 49. Qb3 {[%emt 0:01:12]} Nf6 {[%emt 0:00:00]} 50. g5 {[%emt 0:00:20]} Ne4 {[%emt 0:00:00]} 51. Bf3 {[%emt 0:01:15]} Kf8 {[%emt 0:00:00]} 52. Kg2 {[%emt 0:00:42]} Qd6 {[%emt 0:00:00]} 53. Rd1 {[%emt 0:02:01]} Qc5 {[%emt 0:00:00]} 54. Rh1 {[%emt 0:01:13]} Nc3 {[%emt 0:01:49]} 55. Rc1 {[%emt 0:00:32]} Rc7 {[%emt 0:00:02]} 56. Re1 {[%emt 0:00:31]} Re7 {[%emt 0:00:22]} 57. Kf2 {[%emt 0:00:18]} d4 {[%emt 0:00:38]} 58. Kg3 {[%emt 0:00:19]} d3 {[%emt 0:01:32]} 59. Rh1 {[%emt 0:00:12]} Kg7 {[%emt 0:00:58]} 60. Qb2 {[%emt 0:00:31]} Rxe3 {[%emt 0:00:45]} 61. Rc1 {[%emt 0:01:04]} d2 {[%emt 0:00:17]} 62. Rd1 {[%emt 0:00:17]} Qd4 {[%emt 0:01:51]} 63. Rxd2 {[%emt 0:00:48]} Qxd2 {[%emt 0:00:20]} 64. Qxd2 {[%emt 0:00:09]} Ne4+ {[%emt 0:00:02]} 0-1

[Event "NOR-chT Eliteserien 2018-19"]
[Site "Norway"]
[Date "2019.03.09"]
[Round "8.30"]
[White "Gunnesdal, Lars"]
[Black "Machlik, Endre"]
[Result "1-0"]
[ECO "A22"]
[WhiteElo "2078"]
[BlackElo "2186"]
[Annotator "NA"]
[PlyCount "63"]
[EventDate "2018.11.02"]
[EventType "team-tourn"]
[EventCountry "NOR"]
[SourceTitle "playchess.com"]
[Source "ChessBase"]
[SourceQuality "1"]
[TimeControl "40/5400+30:1800+30"]

1. c4 {[%emt 0:00:00]} e5 {[%emt 0:00:10]} 2. Nc3 {[%emt 0:00:07]} Nf6 {[%emt 0:00:06]} 3. g3 {[%emt 0:00:29]} Bc5 {[%emt 0:00:42]} 4. Bg2 {[%emt 0:01:36]} O-O {[%emt 0:00:55]} 5. d3 {[%emt 0:09:20]} c6 {[%emt 0:04:00]} 6. Nf3 {[%emt 0:01:04]} Re8 {[%emt 0:00:58]} 7. O-O {[%emt 0:03:07]} h6 {[%emt 0:04:13]} 8. Nxe5 {[%emt 0:10:24]} Rxe5 {[%emt 0:09:45]} 9. d4 {[%emt 0:00:17]} Bxd4 {[%emt 0:00:17]} 10. Qxd4 {[%emt 0:00:02]} Re8 {[%emt 0:03:04]} 11. b3 {[%emt 0:14:41]} Qe7 {[%emt 0:08:31]} 12. Bb2 {[%emt 0:09:55]} c5 {[%emt 0:11:15]} 13. Qf4 {[%emt 0:03:52]} Nc6 {[%emt 0:13:20]} 14. Nb5 {[%emt 0:04:58]} d6 {[%emt 0:09:05]} 15. Bxf6 {[%emt 0:04:49]} Qxf6 {[%emt 0:00:05]} 16. Qxf6 {[%emt 0:00:47]} gxf6 {[%emt 0:00:05]} 17. Bxc6 {[%emt 0:03:58]} bxc6 {[%emt 0:00:16]} 18. Nc7 {[%emt 0:00:10]} Bh3 {[%emt 0:00:33]} 19. Nxe8 {[%emt 0:00:20]} Rxe8 {[%emt 0:01:18]} 20. Rfd1 {[%emt 0:02:05]} Rd8 {[%emt 0:00:47]} 21. f3 {[%emt 0:03:14]} h5 {[%emt 0:00:41]} 22. Kf2 {[%emt 0:01:14]} Kf8 {[%emt 0:01:12]} 23. e4 {[%emt 0:06:50]} Be6 {[%emt 0:00:33]} 24. h4 {[%emt 0:02:04]} Ke7 {[%emt 0:00:27]} 25. Rd2 {[%emt 0:03:12]} a5 {[%emt 0:02:43]} 26. Ke3 {[%emt 0:01:46]} Ra8 {[%emt 0:01:37]} 27. Rad1 {[%emt 0:00:44]} Rd8 {[%emt 0:00:05]} 28. Kf4 {[%emt 0:00:29]} Rd7 {[%emt 0:07:48]} 29. g4 {[%emt 0:03:32]} Rd8 {[%emt 0:00:45]} 30. gxh5 {[%emt 0:00:28]} Rh8 {[%emt 0:00:23]} 31. Rxd6 {[%emt 0:00:16]} Rxh5 {[%emt 0:00:11]} 32. Rxc6 {[%emt 0:00:20]} 1-0

[Event "NOR-chT Eliteserien 2018-19"]
[Site "Norway"]
[Date "2019.03.10"]
[Round "9.5"]
[White "Gabrielsen, Stig"]
[Black "Machlik, Endre"]
[Result "1-0"]
[ECO "B19"]
[WhiteElo "2278"]
[BlackElo "2186"]
[Annotator "NA RC"]
[PlyCount "71"]
[EventDate "2018.11.02"]
[EventType "team-tourn"]
[EventCountry "NOR"]
[SourceTitle "playchess.com"]
[Source "ChessBase"]
[SourceQuality "1"]
[TimeControl "40/5400+30:1800+30"]

1. e4 {[%emt 0:00:00]} c6 {[%emt 0:00:00]} 2. d4 {[%emt 0:00:00]} d5 {[%emt 0:00:00]} 3. Nc3 {[%emt 0:00:17]} dxe4 {[%emt 0:00:00]} 4. Nxe4 {[%emt 0:00:08]} Bf5 {[%emt 0:00:08]} 5. Ng3 {[%emt 0:00:11]} Bg6 {[%emt 0:00:06]} 6. h4 {[%emt 0:00:17]} h6 {[%emt 0:00:11]} 7. Nf3 {[%emt 0:00:11]} Nd7 {[%emt 0:00:25]} 8. h5 {[%emt 0:00:12]} Bh7 {[%emt 0:00:05]} 9. Bd3 {[%emt 0:00:07]} Bxd3 {[%emt 0:00:15]} 10. Qxd3 {[%emt 0:00:08]} e6 {[%emt 0:00:33]} 11. Bf4 {[%emt 0:01:15]} Qa5+ {[%emt 0:01:48]} 12. Bd2 {[%emt 0:00:21]} Qc7 {[%emt 0:04:04]} 13. O-O-O {[%emt 0:00:49]} O-O-O {[%emt 0:00:47]} 14. Ne4 {[%emt 0:00:38]} Ngf6 {[%emt 0:03:33]} 15. g3 {[%emt 0:00:23]} Nxe4 {[%emt 0:00:55]} 16. Qxe4 {[%emt 0:00:08]} Nf6 {[%emt 0:00:07]} 17. Qe2 {[%emt 0:00:13]} Bd6 {[%emt 0:01:30]} 18. c4 {[%emt 0:02:16]} c5 {[%emt 0:10:57]} 19. Bc3 {[%emt 0:00:23]} Qc6 {[%emt 0:21:33]} 20. Rh4 {[%emt 0:19:03]} Qa6 {[%emt 0:08:01]} 21. Kb1 {[%emt 0:11:59]} Nd5 {[%emt 0:01:06]} 22. Be1 {[%emt 0:00:16]} cxd4 {[%emt 0:25:21]} 23. Nxd4 {[%emt 0:06:24]} Nb4 {[%emt 0:00:56]} 24. a3 {[%emt 0:02:02]} Nc6 {[%emt 0:00:06]} 25. Nb5 {[%emt 0:07:14]} Be5 {[%emt 0:02:30]} 26. Rc1 {[%emt 0:00:47]} Bf6 {[%emt 0:01:47]} 27. Re4 {[%emt 0:09:38]} Nd4 {[%emt 0:04:05]} 28. Qe3 {[%emt 0:00:52]} Qb6 {[%emt 0:00:44]} 29. Bb4 {[%emt 0:09:14]} Nxb5 {[%emt 0:08:07]} 30. cxb5+ {[%emt 0:01:08]} Kb8 {[%emt 0:00:04]} 31. Bc5 {[%emt 0:03:27]} Qxb5 {[%emt 0:01:27]} 32. Bxa7+ {[%emt 0:00:22]} Ka8 {[%emt 0:00:03]} 33. Rb4 {[%emt 0:00:58]} Qa6 {[%emt 0:04:44]} 34. Bb6 {[%emt 0:01:14]} Rd6 {[%emt 0:00:23]} 35. Qb3 {[%emt 0:07:51]} Rd3 {[%emt 0:00:29]} 36. Qc2 {[%emt 0:00:10]} 1-0